[Event "1st Turkish League 2017"]
[Site "Konya"]
[Date "2017.07.17"]
[Round "1"]
[White "Karaoglan, Doruk"]
[Black "Dedebas, Emre Emin"]
[Result "0-1"]
[ECO "C54"]
[WhiteElo "2130"]
[BlackElo "2322"]
[Annotator "NA"]
[PlyCount "116"]
[EventType "team-tourn"]
[EventCountry "TUR"]
[SourceTitle "playchess.com"]
[Source "ChessBase"]
[SourceQuality "1"]
[TimeControl "5400+30"]

1. e4 {[%emt 0:00:30]} e5 {[%emt 0:01:00]} 2. Nf3 {[%emt 0:00:30]} Nc6 {[%emt 0:00:30]} 3. Bc4 {[%emt 0:00:30]} Bc5 {[%emt 0:00:00]} 4. c3 {[%emt 0:00:30]} Nf6 {[%emt 0:00:00]} 5. d3 {[%emt 0:00:00]} d6 {[%emt 0:00:00]} 6. Bb3 {[%emt 0:01:00]} a6 {[%emt 0:00:00]} 7. Nbd2 {[%emt 0:00:30]} Ba7 {[%emt 0:00:00]} 8. h3 {[%emt 0:00:30]} O-O {[%emt 0:00:00]} 9. Nf1 {[%emt 0:00:30]} d5 $11 {[%emt 0:03:30] LiveBook: 188 Games} 10. Qe2 {[%emt 0:03:30]} dxe4 {[%emt 0:03:30]} 11. dxe4 {[%emt 0:00:30]} Qe7 {[%emt 0:00:00]} 12. Ng3 {[%emt 0:00:30]} Be6 {[%emt 0:00:00]} 13. Nh4 {[%emt 0:04:30]} Bxb3 {[%emt 0:14:30]} 14. axb3 {[%emt 0:00:30]} Qe6 {[%emt 0:00:30]} 15. b4 {[%emt 0:04:30]} Ne7 {[%emt 0:07:30]} 16. Nhf5 {[%emt 0:07:30]} Nxf5 {[%emt 0:24:30]} 17. Nxf5 {[%emt 0:00:30]} Kh8 {[%emt 0:00:00]} 18. O-O {[%emt 0:16:30]} g6 {[%emt 0:16:00]} 19. Nh4 {[%emt 0:05:30]} Nh5 {[%emt 0:04:30]} 20. Rd1 {[%emt 0:16:30]} Bb6 {[%emt 0:13:58]} 21. Bh6 {[%emt 0:06:30]} Rfd8 {[%emt 0:01:50]} 22. Nf3 {[%emt 0:07:30]} f6 {[%emt 0:01:43]} 23. Rd3 {[%emt 0:08:46]} Nf4 {[%emt 0:04:16]} 24. Bxf4 {[%emt 0:01:39]} exf4 {[%emt 0:00:03]} 25. Rad1 {[%emt 0:07:01]} Rxd3 {[%emt 0:00:41]} 26. Qxd3 {[%emt 0:00:30]} Re8 {[%emt 0:00:00]} 27. Re1 {[%emt 0:00:59]} Qc6 {[%emt 0:04:46]} 28. Qd5 {[%emt 0:01:50]} Qxd5 {[%emt 0:01:08]} 29. exd5 {[%emt 0:00:30]} Rxe1+ {[%emt 0:00:30]} 30. Nxe1 {[%emt 0:00:00]} Kg7 {[%emt 0:00:00]} 31. Nc2 {[%emt 0:00:54]} f5 {[%emt 0:00:13]} 32. Na3 {[%emt 0:02:35]} Ba7 {[%emt 0:00:37]} 33. Nc4 {[%emt 0:01:40]} Kf6 {[%emt 0:01:07]} 34. d6 {[%emt 0:00:16]} cxd6 {[%emt 0:00:21]} 35. Nxd6 {[%emt 0:00:06]} b5 {[%emt 0:00:00]} 36. Ne8+ {[%emt 0:01:12]} Ke5 {[%emt 0:00:36]} 37. Nc7 {[%emt 0:00:08]} Bb6 {[%emt 0:00:30]} 38. Nxa6 {[%emt 0:00:38]} Kd5 {[%emt 0:00:10]} 39. b3 {[%emt 0:00:29]} Bd8 {[%emt 0:00:03]} 40. Kf1 {[%emt 0:01:10]} Bf6 {[%emt 0:00:46]} 41. Nc7+ {[%emt 0:00:55]} Kc6 {[%emt 0:00:30]} 42. Ne6 {[%emt 0:00:00]} Bxc3 {[%emt 0:00:17]} 43. Nxf4 {[%emt 0:00:21]} Bxb4 {[%emt 0:00:30]} 44. Ke2 {[%emt 0:00:00]} Bd6 {[%emt 0:00:00]} 45. Ne6 {[%emt 0:00:24]} Kd5 {[%emt 0:00:30]} 46. Ng5 {[%emt 0:00:07]} Kd4 {[%emt 0:00:30]} 47. Nxh7 {[%emt 0:02:05]} Kc3 {[%emt 0:00:07]} 48. g4 {[%emt 0:00:09]} fxg4 {[%emt 0:01:01]} 49. hxg4 {[%emt 0:00:35]} Kxb3 {[%emt 0:00:00]} 50. Ke3 {[%emt 0:00:26]} Kc2 {[%emt 0:00:37]} 51. Ng5 {[%emt 0:00:28]} b4 {[%emt 0:00:56]} 52. Ne4 {[%emt 0:00:45]} Be7 {[%emt 0:00:18]} 53. f4 {[%emt 0:00:21]} b3 {[%emt 0:00:05]} 54. f5 {[%emt 0:00:27]} b2 {[%emt 0:00:43]} 55. f6 {[%emt 0:00:30]} Bf8 {[%emt 0:00:30]} 56. Nd2 {[%emt 0:00:30]} Bh6+ {[%emt 0:00:30]} 57. Ke2 {[%emt 0:00:30]} Bxd2 {[%emt 0:00:30]} 58. f7 {[%emt 0:00:00]} Bb4 {[%emt 0:00:00]} 0-1

[Event "1st Turkish League 2017"]
[Site "Konya"]
[Date "2017.07.17"]
[Round "1"]
[White "Caglar, Ahmet Ata"]
[Black "Bulduk, Ibrahim Ege"]
[Result "1-0"]
[ECO "A80"]
[WhiteElo "2082"]
[BlackElo "1920"]
[Annotator "NA"]
[PlyCount "93"]
[EventType "team-tourn"]
[EventCountry "TUR"]
[SourceTitle "playchess.com"]
[Source "ChessBase"]
[SourceQuality "1"]
[TimeControl "5400+30"]

1. d4 f5 2. Bg5 h6 3. Bh4 g5 4. e3 Nf6 5. Bg3 d6 {LiveBook: 136 Games} 6. h4 g4 {A80: Dutch Defence: Unusual White second moves} 7. Nc3 (7. h5 e6 8. Ne2 Nc6 9. Nbc3 e5 10. dxe5 Nxe5 11. Qd4 Qe7 12. Nf4 Bg7 13. O-O-O O-O 14. Bh4 {½-½ (24) Hillarp Persson,T (2546)-Kuzubov,Y (2641) Douglas 2015}) 7... c6 8. Nge2 Be6 $146 ({Predecessor:} 8... Qb6 9. b3 Qa5 10. a3 Nh5 11. b4 Qc7 12. Qd3 {1-0 (12) Richard,A (2000)-Pech,S (2000) FICGS email 2011}) 9. Qd3 Na6 10. e4 Nb4 11. Qd2 fxe4 12. Nxe4 Nxe4 13. Qxb4 Qb6 14. Qxb6 axb6 15. Nf4 Bf7 16. Bd3 Nxg3 17. fxg3 Bg7 18. c3 Rxa2 19. Rxa2 Bxa2 20. Ng6 Rg8 21. O-O h5 $11 (21... Bf7 $17 22. Nf4 e5 23. dxe5 Bxe5) 22. Ra1 Bf7 23. Ra7 Bxd4+ 24. cxd4 Bxg6 25. Ra8+ Kf7 26. Rxg8 Bxd3 27. Rb8 Ba6 28. Kf2 c5 29. Ke3 Kf6 30. Rh8 Kg6 31. Rg8+ Kf6 32. Rg5 cxd4+ 33. Kxd4 Bf1 34. Rxh5 Bxg2 35. Rb5 e5+ 36. Ke3 Bc6 37. Rxb6 d5 38. b4 d4+ 39. Kd3 Kf5 40. b5 Be4+ 41. Kd2 Bd5 42. Rd6 Bc4 43. h5 Kg5 44. h6 Bg8 45. Re6 Bh7 46. Rxe5+ Kxh6 47. Re7 1-0

[Event "1st Turkish League 2017"]
[Site "Konya"]
[Date "2017.07.17"]
[Round "1"]
[White "Dogan, Mire Deniz"]
[Black "Annaberdiyev, Babageldi"]
[Result "0-1"]
[ECO "A30"]
[WhiteElo "2075"]
[BlackElo "2262"]
[Annotator "NA"]
[PlyCount "56"]
[EventType "team-tourn"]
[EventCountry "TUR"]
[SourceTitle "playchess.com"]
[Source "ChessBase"]
[SourceQuality "1"]
[TimeControl "5400+30"]

1. b3 {[%emt 0:00:30]} c5 {[%emt 0:05:00]} 2. Bb2 {[%emt 0:00:00]} Nc6 {[%emt 0:00:00]} 3. e3 {[%emt 0:00:00]} Nf6 {[%emt 0:02:00]} 4. Nf3 {[%emt 0:00:30]} e6 {[%emt 0:00:30]} 5. c4 {[%emt 0:02:30] LiveBook: 72 Games} Be7 {[%emt 0:00:30]} 6. Be2 {[%emt 0:00:30]} O-O {[%emt 0:00:30]} 7. O-O {[%emt 0:00:30]} b6 {[%emt 0:00:30]} 8. d4 {[%emt 0:00:30]} cxd4 {[%emt 0:00:30]} 9. Nxd4 {[%emt 0:00:30]} Bb7 {[%emt 0:00:30]} 10. Bf3 {[%emt 0:00:30]} d5 {[%emt 0:06:30]} 11. Nc3 {[%emt 0:05:30]} Ne5 {[%emt 0:03:30]} 12. cxd5 {[%emt 0:03:30] A30: Symmetrical English: Double Fianchetto and Hedgehog} Nxf3+ {[%emt 0:02:30]} 13. Qxf3 {[%emt 0:00:30]} Nxd5 {[%emt 0:00:30]} 14. Nxd5 {[%emt 0:00:30]} Qxd5 {[%emt 0:01:30]} 15. Qxd5 {[%emt 0:12:30]} Bxd5 {[%emt 0:00:30]} 16. Nb5 $146 {[%emt 0:05:30]} ({Predecessor:} 16. Rac1 Rac8 17. Nb5 a6 18. Nc3 Bc6 19. Na4 Bxa4 20. bxa4 {½-½ (33) Schaefer,N (2240)-Schurade,M (2345) Germany 1995}) 16... Bc6 {[%emt 0:07:30]} 17. Nd4 {[%emt 0:14:30]} Bb7 {[%emt 0:01:30]} 18. Rac1 {[%emt 0:04:30]} Rac8 {[%emt 0:00:30]} 19. f4 {[%emt 0:07:30]} a6 {[%emt 0:09:30]} 20. Kf2 {[%emt 0:16:30]} Be4 {[%emt 0:09:30]} 21. Ne2 {[%emt 0:06:24]} f6 {[%emt 0:06:30]} 22. Ng3 $15 {[%emt 0:04:57]} Bc2 {[%emt 0:07:30]} 23. Kf3 {[%emt 0:03:43]} Rfd8 {[%emt 0:02:30]} 24. Rf2 {[%emt 0:01:16]} Bd1+ {[%emt 0:00:00]} 25. Ke4 {[%emt 0:08:27]} f5+ {[%emt 0:02:00]} 26. Nxf5 {[%emt 0:00:30]} exf5+ {[%emt 0:00:30]} 27. Kxf5 {[%emt 0:00:00]} Kf7 {[%emt 0:06:30]} 28. h3 {[%emt 0:00:30]} Re8 {[%emt 0:00:30]} 0-1

[Event "1st Turkish League 2017"]
[Site "Konya"]
[Date "2017.07.17"]
[Round "1"]
[White "Kose, Serkan"]
[Black "Okus, Melih"]
[Result "0-1"]
[ECO "B08"]
[WhiteElo "2068"]
[BlackElo "2041"]
[Annotator "NA"]
[PlyCount "68"]
[EventType "team-tourn"]
[EventCountry "TUR"]
[SourceTitle "playchess.com"]
[Source "ChessBase"]
[SourceQuality "1"]
[TimeControl "5400+30"]

1. e4 {[%emt 0:00:30]} g6 {[%emt 0:01:00]} 2. d4 {[%emt 0:00:00]} Bg7 {[%emt 0:00:30]} 3. Nf3 {[%emt 0:00:00]} d6 {[%emt 0:00:00]} 4. Bc4 {[%emt 0:00:30]} Nf6 {[%emt 0:01:00]} 5. Nc3 {[%emt 0:02:30]} c6 {[%emt 0:00:30]} 6. O-O {[%emt 0:00:30]} d5 {[%emt 0:00:30]} 7. exd5 {[%emt 0:00:30]} cxd5 {[%emt 0:00:30]} 8. Bb5+ {[%emt 0:00:30]} Bd7 {[%emt 0:00:30]} 9. Bf4 {[%emt 0:02:30]} O-O {[%emt 0:02:30]} 10. Re1 {[%emt 0:03:30]} a6 {[%emt 0:02:30]} 11. Bxd7 {[%emt 0:00:30]} Nbxd7 {[%emt 0:01:30]} 12. Qd2 {[%emt 0:00:30]} b5 {[%emt 0:07:30]} 13. a3 {[%emt 0:03:30]} Nb6 {[%emt 0:03:30]} 14. Ne5 {[%emt 0:03:30]} Rc8 {[%emt 0:00:30]} 15. Bh6 {[%emt 0:04:30]} Nc4 {[%emt 0:06:30]} 16. Nxc4 {[%emt 0:02:30]} Rxc4 {[%emt 0:00:30]} 17. Bxg7 {[%emt 0:00:30]} Kxg7 {[%emt 0:00:00]} 18. Rad1 {[%emt 0:01:30]} e6 {[%emt 0:02:00]} 19. Re3 {[%emt 0:12:30]} h5 {[%emt 0:24:30]} 20. Rh3 {[%emt 0:04:30]} Qb6 {[%emt 0:11:30]} 21. Qe3 {[%emt 0:11:30]} Rfc8 {[%emt 0:04:30]} 22. Qe5 {[%emt 0:07:30]} Qc7 {[%emt 0:00:00]} 23. Rxh5 {[%emt 0:00:30]} Qxe5 {[%emt 0:00:00]} 24. Rxe5 {[%emt 0:00:30]} b4 {[%emt 0:00:00]} 25. axb4 {[%emt 0:13:30]} Rxb4 {[%emt 0:01:00]} 26. Re3 {[%emt 0:00:30]} Rxb2 {[%emt 0:00:30]} 27. f3 {[%emt 0:11:47]} Rxc2 {[%emt 0:01:30]} 28. Na4 {[%emt 0:00:17]} R8c4 {[%emt 0:02:30]} 29. Nc5 {[%emt 0:00:54]} Ra2 {[%emt 0:00:30]} 30. Kh1 {[%emt 0:06:39]} Rxd4 {[%emt 0:00:30]} 31. Rg1 {[%emt 0:00:20]} Rc4 {[%emt 0:01:30]} 32. Nd3 {[%emt 0:00:30]} Ra3 {[%emt 0:00:30]} 33. Rd1 {[%emt 0:00:31]} Rcc3 {[%emt 0:01:30]} 34. f4 {[%emt 0:00:23]} Ng4 {[%emt 0:00:00]} 0-1

[Event "1st Turkish League 2017"]
[Site "Konya"]
[Date "2017.07.17"]
[Round "1"]
[White "Zeydan, Salih"]
[Black "Tezcan, Emre"]
[Result "1-0"]
[ECO "B18"]
[WhiteElo "2001"]
[BlackElo "2107"]
[Annotator "NA"]
[PlyCount "101"]
[EventType "team-tourn"]
[EventCountry "TUR"]
[SourceTitle "playchess.com"]
[Source "ChessBase"]
[SourceQuality "1"]
[TimeControl "5400+30"]

1. e4 {[%emt 0:00:30]} c6 {[%emt 0:01:00]} 2. d4 {[%emt 0:00:30]} d5 {[%emt 0:00:30]} 3. Nd2 {[%emt 0:00:30]} dxe4 {[%emt 0:00:30]} 4. Nxe4 {[%emt 0:00:30]} Bf5 {[%emt 0:00:00]} 5. Ng3 {[%emt 0:00:30]} Bg6 {[%emt 0:00:00]} 6. h4 {[%emt 0:02:30]} h6 {[%emt 0:00:30]} 7. Nh3 {[%emt 0:03:30]} e6 {[%emt 0:03:30]} 8. Nf4 {[%emt 0:03:30]} Bh7 {[%emt 0:00:30]} 9. Bc4 {[%emt 0:01:30]} Nf6 {[%emt 0:02:30]} 10. Qe2 {[%emt 0:02:30]} Bd6 {[%emt 0:06:30]} 11. Nfh5 {[%emt 0:06:30]} O-O {[%emt 0:04:30]} 12. Be3 {[%emt 0:08:30]} b5 {[%emt 0:11:30]} 13. Nxf6+ {[%emt 0:07:30]} Qxf6 {[%emt 0:00:30]} 14. Nh5 {[%emt 0:00:30]} Qe7 {[%emt 0:07:30]} 15. Bd3 {[%emt 0:05:30]} Bxd3 {[%emt 0:03:30]} 16. Qxd3 {[%emt 0:00:30]} Nd7 {[%emt 0:07:30]} 17. O-O-O {[%emt 0:07:30]} Nf6 {[%emt 0:03:30]} 18. Nxf6+ {[%emt 0:06:30]} Qxf6 {[%emt 0:00:30]} 19. g4 {[%emt 0:00:30]} Qf3 {[%emt 0:02:30]} 20. Qd2 {[%emt 0:05:30]} f5 {[%emt 0:05:30]} 21. gxf5 {[%emt 0:03:30]} exf5 {[%emt 0:00:00]} 22. Qc3 {[%emt 0:07:30]} f4 {[%emt 0:08:00]} 23. Bd2 {[%emt 0:00:30]} Qxc3 {[%emt 0:03:30]} 24. Bxc3 {[%emt 0:01:30]} Rae8 {[%emt 0:01:30]} 25. Rde1 {[%emt 0:03:30]} Kf7 {[%emt 0:01:30]} 26. Kd1 {[%emt 0:01:30]} b4 {[%emt 0:02:30]} 27. Bd2 {[%emt 0:00:30]} g6 {[%emt 0:02:30]} 28. f3 {[%emt 0:04:04]} Kf6 {[%emt 0:00:30]} 29. Rxe8 {[%emt 0:02:59]} Rxe8 {[%emt 0:00:30]} 30. Re1 {[%emt 0:00:00]} Rxe1+ {[%emt 0:01:30]} 31. Bxe1 {[%emt 0:00:42]} Ke6 {[%emt 0:03:31]} 32. Ke2 {[%emt 0:04:03]} Kf5 {[%emt 0:05:52]} 33. c4 {[%emt 0:01:16]} a5 {[%emt 0:00:19]} 34. b3 {[%emt 0:02:26]} Be7 {[%emt 0:00:41]} 35. Bf2 {[%emt 0:01:09]} Bf6 {[%emt 0:01:12]} 36. Kd3 {[%emt 0:01:27]} Be7 {[%emt 0:02:59]} 37. Be1 {[%emt 0:01:38]} g5 {[%emt 0:02:35]} 38. hxg5 {[%emt 0:00:09]} hxg5 {[%emt 0:00:00]} 39. Bf2 {[%emt 0:03:06]} Bd6 {[%emt 0:00:16]} 40. c5 {[%emt 0:01:33]} Bc7 {[%emt 0:00:38]} 41. Kc4 {[%emt 0:00:40]} g4 {[%emt 0:01:46]} 42. fxg4+ {[%emt 0:00:05]} Kxg4 {[%emt 0:00:30]} 43. d5 {[%emt 0:00:19]} Kf3 {[%emt 0:03:31]} 44. Bh4 {[%emt 0:01:00]} cxd5+ {[%emt 0:00:38]} 45. Kxd5 {[%emt 0:00:08]} Ke2 {[%emt 0:00:15]} 46. Kc6 {[%emt 0:00:46]} Be5 {[%emt 0:01:23]} 47. Kb7 {[%emt 0:00:18]} f3 {[%emt 0:00:26]} 48. c6 {[%emt 0:00:30]} Kd3 {[%emt 0:00:25]} 49. c7 {[%emt 0:00:23]} Bxc7 {[%emt 0:00:06]} 50. Kxc7 {[%emt 0:00:01]} Kc3 {[%emt 0:01:28]} 51. Kb6 {[%emt 0:00:29]} 1-0

[Event "1st Turkish League 2017"]
[Site "Konya"]
[Date "2017.07.17"]
[Round "1"]
[White "Degirmenci, Yagiz"]
[Black "Gunduz, Umut Erdem"]
[Result "0-1"]
[ECO "A68"]
[WhiteElo "1917"]
[BlackElo "2066"]
[Annotator "NA"]
[PlyCount "68"]
[EventType "team-tourn"]
[EventCountry "TUR"]
[SourceTitle "playchess.com"]
[Source "ChessBase"]
[SourceQuality "1"]
[TimeControl "5400+30"]

1. d4 {[%emt 0:00:30]} Nf6 {[%emt 0:01:00]} 2. c4 {[%emt 0:00:30]} c5 {[%emt 0:00:30]} 3. d5 {[%emt 0:00:00]} e6 {[%emt 0:00:00]} 4. Nc3 {[%emt 0:00:00]} exd5 {[%emt 0:00:00]} 5. cxd5 {[%emt 0:00:30]} d6 {[%emt 0:00:00]} 6. e4 {[%emt 0:00:30]} g6 {[%emt 0:00:00]} 7. f4 {[%emt 0:04:30]} Bg7 {[%emt 0:00:00]} 8. Nf3 {[%emt 0:00:30]} O-O {[%emt 0:00:00]} 9. Bd3 {[%emt 0:01:30]} b5 {[%emt 0:01:30]} 10. O-O {[%emt 0:26:30]} c4 {[%emt 0:02:30]} 11. Bc2 {[%emt 0:01:30]} b4 {[%emt 0:01:30]} 12. Ne2 {[%emt 0:00:00]} Re8 {[%emt 0:02:30]} 13. Kh1 {[%emt 0:14:00]} Nxe4 {[%emt 0:01:30]} 14. Bxe4 {[%emt 0:01:30]} Rxe4 {[%emt 0:00:30]} 15. Ng3 {[%emt 0:00:00]} Re8 {[%emt 0:01:30]} 16. f5 {[%emt 0:02:00]} Nd7 {[%emt 0:03:30]} 17. fxg6 {[%emt 0:10:30]} fxg6 {[%emt 0:03:30]} 18. Bg5 {[%emt 0:10:30]} Qb6 {[%emt 0:00:00]} 19. Re1 {[%emt 0:00:00]} Ne5 {[%emt 0:09:00]} 20. Nxe5 {[%emt 0:00:00]} Bxe5 {[%emt 0:01:30]} 21. Ne4 {[%emt 0:01:30]} Rf8 {[%emt 0:00:30]} 22. Qe2 {[%emt 0:08:53]} Ba6 {[%emt 0:13:30]} 23. Qg4 {[%emt 0:00:24]} Rf5 {[%emt 0:08:30]} 24. Rf1 {[%emt 0:08:27]} Raf8 {[%emt 0:01:30]} 25. Bf6 {[%emt 0:05:13]} R5xf6 {[%emt 0:00:30]} 26. Nxf6+ {[%emt 0:02:32]} Bxf6 {[%emt 0:00:30]} 27. Qe6+ {[%emt 0:00:56]} Kg7 {[%emt 0:00:00]} 28. Qd7+ {[%emt 0:00:01]} Rf7 {[%emt 0:00:00]} 29. Qe6 {[%emt 0:01:12]} c3 {[%emt 0:00:30]} 30. Rf3 {[%emt 0:00:37]} cxb2 {[%emt 0:00:00]} 31. Re1 {[%emt 0:00:00]} Qd4 {[%emt 0:01:00]} 32. Qxd6 {[%emt 0:00:27]} Qe4 {[%emt 0:00:30]} 33. Rg1 {[%emt 0:01:08]} b1=Q {[%emt 0:00:30]} 34. Rxf6 {[%emt 0:00:30]} Qxg1+ {[%emt 0:00:00]} 0-1

[Event "1st Turkish League 2017"]
[Site "Konya"]
[Date "2017.07.17"]
[Round "1"]
[White "Tinarlioglu, Emre"]
[Black "Kilic, Efe Mert"]
[Result "0-1"]
[ECO "B13"]
[WhiteElo "1856"]
[BlackElo "2287"]
[Annotator "NA"]
[PlyCount "85"]
[EventType "team-tourn"]
[EventCountry "TUR"]
[SourceTitle "playchess.com"]
[Source "ChessBase"]
[SourceQuality "1"]
[TimeControl "5400+30"]

1. e4 {[%emt 0:00:30]} c6 {[%emt 0:01:00]} 2. d4 {[%emt 0:00:30]} d5 {[%emt 0:00:30]} 3. exd5 {[%emt 0:00:30]} cxd5 {[%emt 0:00:30]} 4. c4 {[%emt 0:00:00]} Nf6 {[%emt 0:00:00]} 5. Nc3 {[%emt 0:00:00]} Nc6 {[%emt 0:00:00]} 6. Bg5 {[%emt 0:00:00]} Be6 {[%emt 0:00:00]} 7. Be2 {[%emt 0:00:00]} Qa5 {[%emt 0:02:00]} 8. Nf3 {[%emt 0:00:00]} Rd8 {[%emt 0:01:30]} 9. O-O {[%emt 0:01:00]} dxc4 {[%emt 0:09:30]} 10. Re1 {[%emt 0:00:00]} Bg4 {[%emt 0:09:30]} 11. Bxf6 {[%emt 0:08:00]} gxf6 {[%emt 0:00:30]} 12. Bxc4 {[%emt 0:03:30]} Qb4 {[%emt 0:13:30]} 13. Nd5 {[%emt 0:16:30]} Qd6 {[%emt 0:00:30]} 14. Qb3 {[%emt 0:12:30]} Rd7 {[%emt 0:01:30]} 15. Qc3 {[%emt 0:27:30]} Rg8 {[%emt 0:13:30]} 16. Nd2 {[%emt 0:05:30]} f5 {[%emt 0:08:30]} 17. b4 {[%emt 0:12:32]} Bg7 {[%emt 0:01:30]} 18. Nb3 {[%emt 0:00:24]} e6 {[%emt 0:01:30]} 19. h3 {[%emt 0:04:13]} Bh5 {[%emt 0:04:30]} 20. b5 {[%emt 0:00:52]} Ne7 {[%emt 0:00:30]} 21. Nxe7 {[%emt 0:01:10]} Kxe7 {[%emt 0:02:30]} 22. Bd3 {[%emt 0:03:41]} Bxd4 {[%emt 0:05:30]} 23. Nxd4 {[%emt 0:00:40]} Qxd4 {[%emt 0:00:30]} 24. Qxd4 {[%emt 0:00:30]} Rxd4 {[%emt 0:00:30]} 25. Bxf5 {[%emt 0:00:30]} Bf3 {[%emt 0:00:30]} 26. g3 {[%emt 0:00:30]} Rg5 {[%emt 0:00:30]} 27. Bc2 {[%emt 0:00:30]} Rh4 {[%emt 0:00:30]} 28. Bf5 {[%emt 0:01:26]} Rhh5 {[%emt 0:11:41]} 29. Be4 {[%emt 0:00:36]} Bxe4 {[%emt 0:00:12]} 30. Rxe4 {[%emt 0:00:02]} Rxh3 {[%emt 0:00:19]} 31. Kg2 {[%emt 0:00:49]} Rgh5 {[%emt 0:00:09]} 32. a4 {[%emt 0:00:55]} Rh2+ {[%emt 0:00:33]} 33. Kf3 {[%emt 0:00:05]} Rf5+ {[%emt 0:00:33]} 34. Rf4 {[%emt 0:00:30]} Rxf4+ {[%emt 0:00:00]} 35. gxf4 {[%emt 0:00:00]} Rh3+ {[%emt 0:00:25]} 36. Kg2 {[%emt 0:00:00]} Rc3 {[%emt 0:00:05]} 37. Rh1 {[%emt 0:00:26]} Rc4 {[%emt 0:00:57]} 38. Kg3 {[%emt 0:02:03]} Rxa4 {[%emt 0:00:30]} 39. Rxh7 {[%emt 0:00:00]} Ra5 {[%emt 0:00:26]} 40. Rh5 {[%emt 0:00:58]} a6 {[%emt 0:00:22]} 41. Kf3 {[%emt 0:00:15]} Rxb5 {[%emt 0:00:00]} 42. Ke4 {[%emt 0:00:00]} Kf6 {[%emt 0:00:00]} 43. Kd4 {[%emt 0:00:01]} 0-1